[Event "Titled Tuesday Blitz November 29 Late 2022"]
[White "Aghasiyev, Kamal"]
[Black "Girel, Joseph"]
[WhiteFideId "13402854"]
[BlackFideId "36033561"]
[WhiteElo "2341"]
[BlackElo "2281"]
[Result "1-0"]
[Round "04"]
[TimeControl "180+1"]
[Date "2022.11.30"]
[WhiteClock "0:00:09"]
[BlackClock "0:00:05"]

1. d4 {[%clk 0:02:59]}  Nf6 {[%clk 0:02:56]} 2. Nf3 {[%clk 0:02:59]}  b6 {[%clk 0:02:55]} 3. g3 {[%clk 0:02:58]}  Bb7 {[%clk 0:02:56]} 4. Bg2 {[%clk 0:02:59]}  g6 {[%clk 0:02:56]} 5. O-O {[%clk 0:02:59]}  Bg7 {[%clk 0:02:56]} 6. c4 {[%clk 0:02:56]}  O-O {[%clk 0:02:57]} 7. Nc3 {[%clk 0:02:56]}  Ne4 {[%clk 0:02:57]} 8. Qc2 {[%clk 0:02:39]}  Nxc3 {[%clk 0:02:55]} 9. Qxc3 {[%clk 0:02:38]}  c5 {[%clk 0:02:55]} 10. Be3 {[%clk 0:02:36]}  d6 {[%clk 0:02:54]} 11. Qd2 {[%clk 0:02:32]}  Nc6 {[%clk 0:02:48]} 12. d5 {[%clk 0:02:31]}  Na5 {[%clk 0:02:48]} 13. Rac1 {[%clk 0:02:28]}  a6 {[%clk 0:02:47]} 14. Bh6 {[%clk 0:02:26]}  b5 {[%clk 0:02:46]} 15. Bxg7 {[%clk 0:02:24]}  Kxg7 {[%clk 0:02:47]} 16. b3 {[%clk 0:02:25]}  Bc8 {[%clk 0:02:40]} 17. e4 {[%clk 0:02:19]}  Bg4 {[%clk 0:02:40]} 18. Ne1 {[%clk 0:02:19]}  bxc4 {[%clk 0:02:38]} 19. bxc4 {[%clk 0:02:18]}  Rb8 {[%clk 0:02:35]} 20. Nd3 {[%clk 0:02:18]}  Kg8 {[%clk 0:02:33]} 21. f4 {[%clk 0:02:06]}  Bd7 {[%clk 0:02:17]} 22. f5 {[%clk 0:02:00]}  Qb6 {[%clk 0:02:05]} 23. Qh6 {[%clk 0:01:55]}  Nxc4 {[%clk 0:01:52]} 24. Rxc4 {[%clk 0:01:48]}  Bb5 {[%clk 0:01:52]} 25. Rc3 {[%clk 0:01:48]}  Bxd3 {[%clk 0:01:27]} 26. Rxd3 {[%clk 0:01:47]}  c4+ {[%clk 0:01:28]} 27. Re3 {[%clk 0:01:47]}  Qd4 {[%clk 0:01:28]} 28. Qf4 {[%clk 0:01:31]}  Rb2 {[%clk 0:01:24]} 29. e5 {[%clk 0:01:20]}  Qd2 {[%clk 0:01:22]} 30. Qf2 {[%clk 0:01:18]}  Qb4 {[%clk 0:01:07]} 31. Qe1 {[%clk 0:01:11]}  Qc5 {[%clk 0:01:01]} 32. Kh1 {[%clk 0:01:09]}  dxe5 {[%clk 0:00:54]} 33. Qc3 {[%clk 0:01:01]}  Rxa2 {[%clk 0:00:52]} 34. Qxe5 {[%clk 0:01:00]}  Rd2 {[%clk 0:00:41]} 35. fxg6 {[%clk 0:00:52]}  hxg6 {[%clk 0:00:39]} 36. Qxe7 {[%clk 0:00:51]}  Qd4 {[%clk 0:00:30]} 37. Qe4 {[%clk 0:00:41]}  Qb2 {[%clk 0:00:27]} 38. Bf3 {[%clk 0:00:20]}  Rxh2+ {[%clk 0:00:25]} 39. Kg1 {[%clk 0:00:20]}  c3 {[%clk 0:00:22]} 40. Be2 {[%clk 0:00:18]}  Rh3 {[%clk 0:00:13]} 41. Kg2 {[%clk 0:00:17]}  Rh5 {[%clk 0:00:14]} 42. Qd4 {[%clk 0:00:16]}  Rd8 {[%clk 0:00:09]} 43. Qf6 {[%clk 0:00:15]}  Rf8 {[%clk 0:00:05]} 44. Rf2 {[%clk 0:00:15]}  Qd2 {[%clk 0:00:04]} 45. Rd3 {[%clk 0:00:13]}  Qc2 {[%clk 0:00:03]} 46. Rxc3 {[%clk 0:00:12]}  Qd2 {[%clk 0:00:03]} 47. Bxh5 {[%clk 0:00:11]}  Qh6 {[%clk 0:00:02]} 48. Bg4 {[%clk 0:00:09]}  Qh7 {[%clk 0:00:02]} 49. Be6 {[%clk 0:00:08]}  Qh6 {[%clk 0:00:02]} 50. Bxf7+ {[%clk 0:00:08]}  Kh7 {[%clk 0:00:03]} 51. Bxg6+ {[%clk 0:00:08]}  Qxg6 {[%clk 0:00:04]} 52. Qxg6+ {[%clk 0:00:08]}  Kxg6 {[%clk 0:00:05]} 53. Rxf8 {[%clk 0:00:09]} 1-0


[Site "https://www.chess.com"]

[Event "Titled Tuesday Blitz November 29 Late 2022"]
[White "Arngrimsson, Dagur"]
[Black "Ansh M Shah"]
[WhiteFideId "2301288"]
[BlackFideId "25033379"]
[WhiteElo "2286"]
[BlackElo "2084"]
[Result "0-1"]
[Round "04"]
[TimeControl "180+1"]
[Date "2022.11.30"]
[WhiteClock "0:00:25"]
[BlackClock "0:00:19"]

1. e4 {[%clk 0:03:00]}  c6 {[%clk 0:03:00]} 2. d4 {[%clk 0:03:00]}  d5 {[%clk 0:03:01]} 3. Nc3 {[%clk 0:03:01]}  dxe4 {[%clk 0:03:01]} 4. Nxe4 {[%clk 0:03:01]}  Nf6 {[%clk 0:03:01]} 5. Ng3 {[%clk 0:03:01]}  e6 {[%clk 0:03:00]} 6. Bg5 {[%clk 0:02:58]}  Be7 {[%clk 0:03:01]} 7. Qd2 {[%clk 0:02:53]}  O-O {[%clk 0:03:01]} 8. h4 {[%clk 0:02:52]}  Nbd7 {[%clk 0:03:01]} 9. O-O-O {[%clk 0:02:52]}  b5 {[%clk 0:03:01]} 10. Kb1 {[%clk 0:02:52]}  Bb7 {[%clk 0:03:00]} 11. Nf3 {[%clk 0:02:36]}  a5 {[%clk 0:02:59]} 12. Bd3 {[%clk 0:02:33]}  a4 {[%clk 0:02:59]} 13. Ne4 {[%clk 0:02:31]}  Nxe4 {[%clk 0:02:58]} 14. Bxe4 {[%clk 0:02:30]}  Nf6 {[%clk 0:02:56]} 15. Bxf6 {[%clk 0:02:27]}  Bxf6 {[%clk 0:02:57]} 16. Qe2 {[%clk 0:02:19]}  Qc7 {[%clk 0:02:39]} 17. Bxh7+ {[%clk 0:02:14]}  Kxh7 {[%clk 0:02:20]} 18. Ng5+ {[%clk 0:02:13]}  Kg8 {[%clk 0:02:20]} 19. Qh5 {[%clk 0:02:13]}  Rfd8 {[%clk 0:02:14]} 20. Rde1 {[%clk 0:01:56]}  Rd6 {[%clk 0:01:50]} 21. f4 {[%clk 0:01:40]}  g6 {[%clk 0:01:09]} 22. Qh7+ {[%clk 0:01:12]}  Kf8 {[%clk 0:01:09]} 23. Rxe6 {[%clk 0:01:03]}  Bg7 {[%clk 0:01:00]} 24. Rhe1 {[%clk 0:00:58]}  Rxe6 {[%clk 0:00:42]} 25. Rxe6 {[%clk 0:00:53]}  Qxf4 {[%clk 0:00:34]} 26. a3 {[%clk 0:00:28]}  Qxd4 {[%clk 0:00:19]} 27. c3 {[%clk 0:00:28]}  Qd1+ {[%clk 0:00:19]} 28. Ka2 {[%clk 0:00:29]}  Qd5+ {[%clk 0:00:17]} 29. Kb1 {[%clk 0:00:28]}  Qf5+ {[%clk 0:00:17]} 30. Ka2 {[%clk 0:00:28]}  fxe6 {[%clk 0:00:17]} 31. h5 {[%clk 0:00:28]}  gxh5 {[%clk 0:00:16]} 32. Qxh5 {[%clk 0:00:28]}  Ke7 {[%clk 0:00:15]} 33. Qh4 {[%clk 0:00:28]}  Bf6 {[%clk 0:00:15]} 34. Qb4+ {[%clk 0:00:28]}  c5 {[%clk 0:00:15]} 35. Qxb5 {[%clk 0:00:28]}  Bd5+ {[%clk 0:00:16]} 36. c4 {[%clk 0:00:28]}  Bxg5 {[%clk 0:00:16]} 37. cxd5 {[%clk 0:00:27]}  Qxd5+ {[%clk 0:00:17]} 38. Ka1 {[%clk 0:00:27]}  Ra7 {[%clk 0:00:16]} 39. Qb8 {[%clk 0:00:25]}  Rb7 {[%clk 0:00:17]} 40. Qg8 {[%clk 0:00:25]}  Bf6 {[%clk 0:00:17]} 41. Qh7+ {[%clk 0:00:25]}  Kd6 {[%clk 0:00:18]} 42. Qh2+ {[%clk 0:00:24]}  Be5 {[%clk 0:00:18]} 43. g3 {[%clk 0:00:25]}  Bxb2+ {[%clk 0:00:18]} 44. Kb1 {[%clk 0:00:24]}  Qd1+ {[%clk 0:00:17]} 45. Ka2 {[%clk 0:00:24]}  Qb3+ {[%clk 0:00:17]} 46. Kb1 {[%clk 0:00:25]}  Bxa3+ {[%clk 0:00:17]} 47. Ka1 {[%clk 0:00:25]}  Qd1+ {[%clk 0:00:17]} 48. Ka2 {[%clk 0:00:25]}  Qb1+ {[%clk 0:00:18]} 49. Kxa3 {[%clk 0:00:25]}  Qb3# {[%clk 0:00:19]} 0-1


[Site "https://www.chess.com"]

[Event "Titled Tuesday Blitz November 29 Late 2022"]
[White "Barbot, Pierre"]
[Black "Quinones Garcia, Santiago"]
[WhiteFideId "663727"]
[BlackFideId "4408497"]
[WhiteElo "2439"]
[BlackElo "2249"]
[Result "0-1"]
[Round "04"]
[TimeControl "180+1"]
[Date "2022.11.30"]
[WhiteClock "0:00:01"]
[BlackClock "0:00:13"]

1. d4 {[%clk 0:03:00]}  Nf6 {[%clk 0:02:54]} 2. Nf3 {[%clk 0:03:00]}  g6 {[%clk 0:02:53]} 3. Bf4 {[%clk 0:03:00]}  d6 {[%clk 0:02:54]} 4. h3 {[%clk 0:02:59]}  Bg7 {[%clk 0:02:55]} 5. e3 {[%clk 0:02:59]}  O-O {[%clk 0:02:55]} 6. Be2 {[%clk 0:03:00]}  c5 {[%clk 0:02:53]} 7. O-O {[%clk 0:02:59]}  b6 {[%clk 0:02:53]} 8. c4 {[%clk 0:02:55]}  cxd4 {[%clk 0:02:50]} 9. exd4 {[%clk 0:02:52]}  d5 {[%clk 0:02:50]} 10. Nc3 {[%clk 0:02:46]}  Bb7 {[%clk 0:02:48]} 11. Rc1 {[%clk 0:02:35]}  dxc4 {[%clk 0:02:46]} 12. Bxc4 {[%clk 0:02:35]}  Nc6 {[%clk 0:02:37]} 13. Re1 {[%clk 0:02:29]}  Rc8 {[%clk 0:02:36]} 14. Bf1 {[%clk 0:02:09]}  Nb4 {[%clk 0:02:31]} 15. Ne5 {[%clk 0:02:04]}  Nbd5 {[%clk 0:02:29]} 16. Bh2 {[%clk 0:02:02]}  e6 {[%clk 0:02:18]} 17. Qa4 {[%clk 0:01:55]}  Qe7 {[%clk 0:02:10]} 18. a3 {[%clk 0:01:35]}  Bc6 {[%clk 0:01:54]} 19. Qb3 {[%clk 0:01:14]}  Bb7 {[%clk 0:01:44]} 20. Qa4 {[%clk 0:01:13]}  Rfd8 {[%clk 0:01:40]} 21. Red1 {[%clk 0:01:07]}  a6 {[%clk 0:01:38]} 22. Qb3 {[%clk 0:00:59]}  Nd7 {[%clk 0:01:12]} 23. Na4 {[%clk 0:00:37]}  Rxc1 {[%clk 0:00:59]} 24. Rxc1 {[%clk 0:00:37]}  b5 {[%clk 0:00:38]} 25. Nc3 {[%clk 0:00:18]}  N7b6 {[%clk 0:00:34]} 26. a4 {[%clk 0:00:16]}  b4 {[%clk 0:00:32]} 27. Ne4 {[%clk 0:00:02]}  a5 {[%clk 0:00:29]} 28. Nd2 {[%clk 0:00:02]}  Qe8 {[%clk 0:00:25]} 29. Bb5 {[%clk 0:00:02]}  Qe7 {[%clk 0:00:25]} 30. Ndc4 {[%clk 0:00:02]}  Qg5 {[%clk 0:00:19]} 31. Rd1 {[%clk 0:00:01]}  Nf4 {[%clk 0:00:16]} 32. Bg3 {[%clk 0:00:01]}  Nxc4 {[%clk 0:00:14]} 33. Bxc4 {[%clk 0:00:01]}  Nxg2 {[%clk 0:00:13]} 0-1


[Site "https://www.chess.com"]

[Event "Titled Tuesday Blitz November 29 Late 2022"]
[White "Bas Mas, Jose Joaquin"]
[Black "Maksimovic, Bojan"]
[WhiteFideId "22219064"]
[BlackFideId "14408120"]
[WhiteElo "2233"]
[BlackElo "2447"]
[Result "0-1"]
[Round "04"]
[TimeControl "180+1"]
[Date "2022.11.30"]
[WhiteClock "0:00:02"]
[BlackClock "0:00:27"]

1. e4 {[%clk 0:03:00]}  c5 {[%clk 0:02:59]} 2. Nc3 {[%clk 0:03:00]}  e6 {[%clk 0:02:58]} 3. g3 {[%clk 0:02:56]}  d5 {[%clk 0:02:58]} 4. exd5 {[%clk 0:02:54]}  exd5 {[%clk 0:02:59]} 5. d4 {[%clk 0:02:53]}  cxd4 {[%clk 0:02:57]} 6. Qxd4 {[%clk 0:02:46]}  Nf6 {[%clk 0:02:57]} 7. Bg5 {[%clk 0:02:37]}  Nc6 {[%clk 0:02:48]} 8. Bb5 {[%clk 0:02:36]}  Be7 {[%clk 0:02:30]} 9. O-O-O {[%clk 0:02:26]}  O-O {[%clk 0:02:30]} 10. Qa4 {[%clk 0:02:13]}  a6 {[%clk 0:02:03]} 11. Nge2 {[%clk 0:01:49]}  Bd7 {[%clk 0:01:49]} 12. Bxc6 {[%clk 0:01:46]}  bxc6 {[%clk 0:01:49]} 13. Rhe1 {[%clk 0:01:02]}  c5 {[%clk 0:01:35]} 14. Qa3 {[%clk 0:00:31]}  c4 {[%clk 0:01:33]} 15. Bxf6 {[%clk 0:00:30]}  gxf6 {[%clk 0:01:33]} 16. Qxe7 {[%clk 0:00:22]}  Qxe7 {[%clk 0:01:33]} 17. Nxd5 {[%clk 0:00:21]}  Qd8 {[%clk 0:01:22]} 18. Nef4 {[%clk 0:00:19]}  Bc6 {[%clk 0:01:13]} 19. Ne7+ {[%clk 0:00:16]}  Qxe7 {[%clk 0:00:55]} 20. Rxe7 {[%clk 0:00:16]}  Rfe8 {[%clk 0:00:56]} 21. Rxe8+ {[%clk 0:00:15]}  Rxe8 {[%clk 0:00:57]} 22. Kd2 {[%clk 0:00:14]}  Kg7 {[%clk 0:00:45]} 23. Kc3 {[%clk 0:00:14]}  Bf3 {[%clk 0:00:46]} 24. Rd4 {[%clk 0:00:13]}  Re1 {[%clk 0:00:45]} 25. Rxc4 {[%clk 0:00:13]}  f5 {[%clk 0:00:43]} 26. b4 {[%clk 0:00:13]}  Ra1 {[%clk 0:00:42]} 27. Kb2 {[%clk 0:00:12]}  Rf1 {[%clk 0:00:41]} 28. a4 {[%clk 0:00:11]}  Rxf2 {[%clk 0:00:41]} 29. b5 {[%clk 0:00:12]}  axb5 {[%clk 0:00:41]} 30. axb5 {[%clk 0:00:13]}  Rxh2 {[%clk 0:00:40]} 31. b6 {[%clk 0:00:12]}  Rh6 {[%clk 0:00:38]} 32. Rb4 {[%clk 0:00:11]}  Bb7 {[%clk 0:00:38]} 33. Nd3 {[%clk 0:00:10]}  Rc6 {[%clk 0:00:37]} 34. c4 {[%clk 0:00:09]}  Kf6 {[%clk 0:00:29]} 35. Kc3 {[%clk 0:00:08]}  h5 {[%clk 0:00:29]} 36. Kd4 {[%clk 0:00:08]}  Rd6+ {[%clk 0:00:29]} 37. Ke3 {[%clk 0:00:07]}  Rc6 {[%clk 0:00:29]} 38. c5 {[%clk 0:00:07]}  Re6+ {[%clk 0:00:27]} 39. Kd4 {[%clk 0:00:07]}  Re4+ {[%clk 0:00:28]} 40. Kc3 {[%clk 0:00:06]}  Re3 {[%clk 0:00:29]} 41. Kd2 {[%clk 0:00:05]}  Rxg3 {[%clk 0:00:29]} 42. Nf4 {[%clk 0:00:04]}  h4 {[%clk 0:00:28]} 43. Nh5+ {[%clk 0:00:04]}  Kg5 {[%clk 0:00:29]} 44. Nxg3 {[%clk 0:00:04]}  hxg3 {[%clk 0:00:30]} 45. Ke1 {[%clk 0:00:03]}  f4 {[%clk 0:00:30]} 46. Rc4 {[%clk 0:00:03]}  Bc6 {[%clk 0:00:29]} 47. Rd4 {[%clk 0:00:02]}  f3 {[%clk 0:00:28]} 48. Rd6 {[%clk 0:00:02]}  f2+ {[%clk 0:00:28]} 49. Kf1 {[%clk 0:00:02]}  Bb5+ {[%clk 0:00:29]} 50. Kg2 {[%clk 0:00:02]}  f1=Q+ {[%clk 0:00:29]} 51. Kxg3 {[%clk 0:00:03]}  Qf4+ {[%clk 0:00:30]} 52. Kg2 {[%clk 0:00:03]}  Qg4+ {[%clk 0:00:26]} 53. Kf2 {[%clk 0:00:02]}  Qf5+ {[%clk 0:00:27]} 54. Ke3 {[%clk 0:00:02]}  Qxc5+ {[%clk 0:00:27]} 0-1


[Site "https://www.chess.com"]

[Event "Titled Tuesday Blitz November 29 Late 2022"]
[White "Bashirli, Nail"]
[Black "Banzea, Alexandru-Bogdan"]
[WhiteFideId "13406809"]
[BlackFideId "1232622"]
[WhiteElo "2318"]
[BlackElo "2294"]
[Result "1-0"]
[Round "04"]
[TimeControl "180+1"]
[Date "2022.11.30"]
[WhiteClock "0:01:35"]
[BlackClock "0:00:09"]

1. e4 {[%clk 0:02:59]}  c6 {[%clk 0:02:57]} 2. Nc3 {[%clk 0:02:58]}  d5 {[%clk 0:02:55]} 3. Nf3 {[%clk 0:02:59]}  dxe4 {[%clk 0:02:47]} 4. Nxe4 {[%clk 0:03:00]}  Nf6 {[%clk 0:02:48]} 5. Qe2 {[%clk 0:02:59]}  Be6 {[%clk 0:02:32]} 6. b3 {[%clk 0:02:58]}  Nxe4 {[%clk 0:02:30]} 7. Qxe4 {[%clk 0:02:59]}  Nd7 {[%clk 0:02:30]} 8. Bb2 {[%clk 0:02:59]}  Nf6 {[%clk 0:02:31]} 9. Qf4 {[%clk 0:02:59]}  g6 {[%clk 0:02:19]} 10. O-O-O {[%clk 0:02:58]}  Bg7 {[%clk 0:02:20]} 11. h4 {[%clk 0:02:58]}  O-O {[%clk 0:02:16]} 12. Ng5 {[%clk 0:02:55]}  Bc8 {[%clk 0:01:56]} 13. Be2 {[%clk 0:02:51]}  h6 {[%clk 0:01:47]} 14. Ne4 {[%clk 0:02:41]}  Qa5 {[%clk 0:01:29]} 15. Nxf6+ {[%clk 0:02:32]}  exf6 {[%clk 0:01:30]} 16. a4 {[%clk 0:02:29]}  f5 {[%clk 0:00:56]} 17. Bxg7 {[%clk 0:02:30]}  Kxg7 {[%clk 0:00:57]} 18. h5 {[%clk 0:02:30]}  g5 {[%clk 0:00:57]} 19. Qd4+ {[%clk 0:02:29]}  f6 {[%clk 0:00:57]} 20. Rhe1 {[%clk 0:02:23]}  Qe5 {[%clk 0:00:53]} 21. Qb2 {[%clk 0:02:17]}  Qxb2+ {[%clk 0:00:48]} 22. Kxb2 {[%clk 0:02:18]}  Re8 {[%clk 0:00:44]} 23. d4 {[%clk 0:01:44]}  Bd7 {[%clk 0:00:41]} 24. c4 {[%clk 0:01:44]}  Re7 {[%clk 0:00:32]} 25. Bd3 {[%clk 0:01:42]}  Rae8 {[%clk 0:00:32]} 26. Rxe7+ {[%clk 0:01:42]}  Rxe7 {[%clk 0:00:33]} 27. d5 {[%clk 0:01:42]}  c5 {[%clk 0:00:26]} 28. a5 {[%clk 0:01:41]}  f4 {[%clk 0:00:23]} 29. f3 {[%clk 0:01:37]}  Re3 {[%clk 0:00:20]} 30. Kc2 {[%clk 0:01:37]}  g4 {[%clk 0:00:20]} 31. fxg4 {[%clk 0:01:34]}  Rg3 {[%clk 0:00:21]} 32. Rf1 {[%clk 0:01:34]}  Rxg2+ {[%clk 0:00:20]} 33. Kc3 {[%clk 0:01:35]}  Rxg4 {[%clk 0:00:21]} 34. b4 {[%clk 0:01:35]}  b6 {[%clk 0:00:14]} 35. bxc5 {[%clk 0:01:35]}  bxc5 {[%clk 0:00:14]} 36. Rb1 {[%clk 0:01:35]}  Kf7 {[%clk 0:00:14]} 37. Rb7 {[%clk 0:01:34]}  Ke8 {[%clk 0:00:09]} 38. Rxd7 {[%clk 0:01:35]} 1-0


[Site "https://www.chess.com"]

[Event "Titled Tuesday Blitz November 29 Late 2022"]
[White "Bayo Milagro, Alvaro"]
[Black "Yuan, Qingyu"]
[WhiteFideId "22275240"]
[BlackFideId "8609772"]
[WhiteElo "2270"]
[BlackElo "2359"]
[Result "0-1"]
[Round "04"]
[TimeControl "180+1"]
[Date "2022.11.30"]
[WhiteClock "0:00:03"]
[BlackClock "0:00:03"]

1. Nf3 {[%clk 0:03:00]}  d5 {[%clk 0:02:59]} 2. d4 {[%clk 0:03:00]}  Nf6 {[%clk 0:02:59]} 3. c4 {[%clk 0:03:00]}  e6 {[%clk 0:02:59]} 4. g3 {[%clk 0:02:59]}  dxc4 {[%clk 0:02:59]} 5. Bg2 {[%clk 0:02:59]}  c5 {[%clk 0:03:00]} 6. O-O {[%clk 0:02:59]}  Nc6 {[%clk 0:03:01]} 7. dxc5 {[%clk 0:02:55]}  Qxd1 {[%clk 0:03:01]} 8. Rxd1 {[%clk 0:02:54]}  Bxc5 {[%clk 0:03:02]} 9. Nbd2 {[%clk 0:02:51]}  c3 {[%clk 0:03:03]} 10. bxc3 {[%clk 0:02:52]}  O-O {[%clk 0:03:03]} 11. Nb3 {[%clk 0:02:51]}  Be7 {[%clk 0:03:04]} 12. c4 {[%clk 0:02:40]}  Bd7 {[%clk 0:03:03]} 13. Bb2 {[%clk 0:02:39]}  Rfc8 {[%clk 0:03:04]} 14. Rac1 {[%clk 0:02:37]}  Be8 {[%clk 0:03:03]} 15. c5 {[%clk 0:02:18]}  b6 {[%clk 0:02:10]} 16. Ne5 {[%clk 0:02:11]}  Nd5 {[%clk 0:01:49]} 17. Bxd5 {[%clk 0:02:08]}  exd5 {[%clk 0:01:48]} 18. Nxc6 {[%clk 0:02:08]}  Rxc6 {[%clk 0:01:36]} 19. Rxd5 {[%clk 0:01:55]}  bxc5 {[%clk 0:01:33]} 20. Nxc5 {[%clk 0:01:43]}  Rb8 {[%clk 0:01:19]} 21. Bd4 {[%clk 0:01:29]}  Rbc8 {[%clk 0:01:14]} 22. Be3 {[%clk 0:01:24]}  f6 {[%clk 0:01:03]} 23. Nd3 {[%clk 0:01:21]}  Rxc1+ {[%clk 0:00:55]} 24. Nxc1 {[%clk 0:01:18]}  a6 {[%clk 0:00:54]} 25. f3 {[%clk 0:01:08]}  Rc2 {[%clk 0:00:50]} 26. Kf2 {[%clk 0:01:05]}  Bb5 {[%clk 0:00:37]} 27. Rd4 {[%clk 0:00:47]}  Ba3 {[%clk 0:00:34]} 28. Rd2 {[%clk 0:00:30]}  Rxc1 {[%clk 0:00:25]} 29. Rd8+ {[%clk 0:00:30]}  Kf7 {[%clk 0:00:26]} 30. Bxc1 {[%clk 0:00:31]}  Bxc1 {[%clk 0:00:26]} 31. Ra8 {[%clk 0:00:26]}  Ba3 {[%clk 0:00:23]} 32. g4 {[%clk 0:00:19]}  Bd6 {[%clk 0:00:20]} 33. h4 {[%clk 0:00:18]}  h6 {[%clk 0:00:19]} 34. h5 {[%clk 0:00:18]}  Bc5+ {[%clk 0:00:19]} 35. e3 {[%clk 0:00:15]}  g6 {[%clk 0:00:19]} 36. hxg6+ {[%clk 0:00:14]}  Kxg6 {[%clk 0:00:20]} 37. a4 {[%clk 0:00:12]}  Bd3 {[%clk 0:00:16]} 38. f4 {[%clk 0:00:11]}  f5 {[%clk 0:00:12]} 39. gxf5+ {[%clk 0:00:04]}  Kxf5 {[%clk 0:00:13]} 40. Rh8 {[%clk 0:00:03]}  Kg6 {[%clk 0:00:10]} 41. Kf3 {[%clk 0:00:03]}  Bc2 {[%clk 0:00:09]} 42. Ra8 {[%clk 0:00:03]}  Bd3 {[%clk 0:00:06]} 43. e4 {[%clk 0:00:03]}  h5 {[%clk 0:00:05]} 44. Rc8 {[%clk 0:00:03]}  Bb4 {[%clk 0:00:05]} 45. Rc6+ {[%clk 0:00:03]}  Kg7 {[%clk 0:00:04]} 46. f5 {[%clk 0:00:03]}  a5 {[%clk 0:00:03]} 47. Rg6+ {[%clk 0:00:02]}  Kf7 {[%clk 0:00:03]} 48. Rh6 {[%clk 0:00:03]}  Bc2 {[%clk 0:00:03]} 49. Rxh5 {[%clk 0:00:03]}  Bd1+ {[%clk 0:00:03]} 0-1


[Site "https://www.chess.com"]

[Event "Titled Tuesday Blitz November 29 Late 2022"]
[White "Bluebaum, Matthias"]
[Black "Boruchovsky, Avital"]
[WhiteFideId "24651516"]
[BlackFideId "2800055"]
[WhiteElo "2633"]
[BlackElo "2458"]
[Result "1-0"]
[Round "04"]
[TimeControl "180+1"]
[Date "2022.11.30"]
[WhiteClock "0:00:40"]
[BlackClock "0:00:09"]

1. d4 {[%clk 0:03:00]}  Nf6 {[%clk 0:02:56]} 2. c4 {[%clk 0:03:01]}  g6 {[%clk 0:02:53]} 3. Nc3 {[%clk 0:03:01]}  d5 {[%clk 0:02:52]} 4. cxd5 {[%clk 0:03:02]}  Nxd5 {[%clk 0:02:53]} 5. e4 {[%clk 0:03:03]}  Nxc3 {[%clk 0:02:53]} 6. bxc3 {[%clk 0:03:04]}  Bg7 {[%clk 0:02:54]} 7. Nf3 {[%clk 0:03:05]}  O-O {[%clk 0:02:54]} 8. Be2 {[%clk 0:03:05]}  c5 {[%clk 0:02:54]} 9. O-O {[%clk 0:03:05]}  b6 {[%clk 0:02:49]} 10. Be3 {[%clk 0:03:03]}  Qc7 {[%clk 0:02:46]} 11. Rc1 {[%clk 0:03:01]}  Ba6 {[%clk 0:02:19]} 12. Bxa6 {[%clk 0:02:58]}  Nxa6 {[%clk 0:02:19]} 13. Qe2 {[%clk 0:02:54]}  c4 {[%clk 0:02:08]} 14. Rb1 {[%clk 0:02:47]}  e6 {[%clk 0:02:07]} 15. Nd2 {[%clk 0:02:36]}  Rac8 {[%clk 0:02:02]} 16. h4 {[%clk 0:02:34]}  Qc6 {[%clk 0:01:41]} 17. h5 {[%clk 0:02:31]}  Rfd8 {[%clk 0:01:34]} 18. Bg5 {[%clk 0:02:27]}  Rd7 {[%clk 0:01:34]} 19. h6 {[%clk 0:02:27]}  f6 {[%clk 0:01:13]} 20. hxg7 {[%clk 0:02:15]}  fxg5 {[%clk 0:01:14]} 21. f4 {[%clk 0:02:15]}  gxf4 {[%clk 0:01:04]} 22. Rxf4 {[%clk 0:02:16]}  e5 {[%clk 0:00:56]} 23. Rf8+ {[%clk 0:02:14]}  Kxg7 {[%clk 0:00:53]} 24. Rxc8 {[%clk 0:01:54]}  Qxc8 {[%clk 0:00:53]} 25. Nxc4 {[%clk 0:01:46]}  exd4 {[%clk 0:00:54]} 26. cxd4 {[%clk 0:01:47]}  Rxd4 {[%clk 0:00:50]} 27. Qb2 {[%clk 0:01:47]}  Qxc4 {[%clk 0:00:34]} 28. Rd1 {[%clk 0:01:47]}  Kf7 {[%clk 0:00:20]} 29. Rxd4 {[%clk 0:01:46]}  Qc5 {[%clk 0:00:20]} 30. Qf2+ {[%clk 0:01:45]}  Ke7 {[%clk 0:00:20]} 31. e5 {[%clk 0:01:26]}  Nc7 {[%clk 0:00:19]} 32. Qf6+ {[%clk 0:01:12]}  Ke8 {[%clk 0:00:19]} 33. Qd8+ {[%clk 0:01:13]}  Kf7 {[%clk 0:00:19]} 34. Qd7+ {[%clk 0:01:12]}  Kf8 {[%clk 0:00:15]} 35. Qd6+ {[%clk 0:00:39]}  Qxd6 {[%clk 0:00:15]} 36. exd6 {[%clk 0:00:40]}  Ne6 {[%clk 0:00:15]} 37. Re4 {[%clk 0:00:40]}  Nc5 {[%clk 0:00:12]} 38. Re7 {[%clk 0:00:40]}  a5 {[%clk 0:00:12]} 39. Rxh7 {[%clk 0:00:40]}  b5 {[%clk 0:00:12]} 40. Rc7 {[%clk 0:00:40]}  Ne6 {[%clk 0:00:12]} 41. Rb7 {[%clk 0:00:37]}  b4 {[%clk 0:00:12]} 42. Rb5 {[%clk 0:00:37]}  Ke8 {[%clk 0:00:08]} 43. Rxa5 {[%clk 0:00:37]}  Kd7 {[%clk 0:00:09]} 44. Rb5 {[%clk 0:00:38]}  Kxd6 {[%clk 0:00:09]} 45. Rxb4 {[%clk 0:00:39]}  Nc5 {[%clk 0:00:10]} 46. Rb6+ {[%clk 0:00:39]}  Ke5 {[%clk 0:00:09]} 47. Rxg6 {[%clk 0:00:40]} 1-0


[Site "https://www.chess.com"]